fUST/lending_fUST_20251201
["ID","MTS","AMOUNT","RATE_DAILY","PERIOD"]
[395190197,1764529832239,-300.0,0.0001046,2]
[395190198,1764529832249,-300.0,0.0001046,2]
[395190199,1764529832260,-300.0,0.0001046,2]
[395190200,1764529832270,-300.0,0.0001046,2]
[395190201,1764529832280,-300.0,0.0001046,2]
[395190202,1764529832289,-300.0,0.0001046,2]
[395190203,1764529832303,-300.0,0.0001046,2]
[395190204,1764529832313,-300.0,0.0001046,2]
[395190205,1764529832323,-300.0,0.0001046,2]
[395190206,1764529832333,-300.0,0.0001046,2]
[395190207,1764529832342,-300.0,0.0001046,2]
[395190208,1764529832352,-300.0,0.0001046,2]
[395190209,1764529832362,-300.0,0.0001046,2]
[395190210,1764529832372,-600.0,0.0001046,2]
[395190211,1764529832382,-353.67603643,0.00010542,2]
[395190212,1764529832392,-999.0,0.00010959,2]
[395190213,1764529832402,-500.0,0.00010959,2]
[395190214,1764529832412,-250.0,0.00010959,2]
[395190215,1764529832422,-500.0,0.00010959,2]
[395190216,1764529832432,-500.0,0.00010959,2]
[395190217,1764529832442,-500.0,0.00010959,2]
[395190218,1764529832453,-253.00500535,0.00010959,2]
[395190219,1764529832463,-259.16214129,0.00010959,2]
[395190220,1764529832472,-500.0,0.00010959,2]
[395190221,1764529832482,-500.0,0.00010959,2]
[395190222,1764529832492,-500.0,0.00010959,2]
[395190223,1764529832501,-500.0,0.00010959,2]
[395190224,1764529832511,-500.0,0.00010959,2]
[395190225,1764529832520,-500.0,0.00010959,2]
[395190226,1764529832530,-500.0,0.00010959,2]
[395190227,1764529832539,-500.0,0.00010959,2]
[395190228,1764529832550,-500.0,0.00010959,2]
[395190229,1764529832560,-500.0,0.00010959,2]
[395190230,1764529832569,-500.0,0.00010959,2]
[395190231,1764529832579,-500.0,0.00010959,2]
[395190232,1764529832589,-500.0,0.00010959,2]
[395190233,1764529832598,-500.0,0.00010959,2]
[395190234,1764529832607,-500.0,0.00010959,2]
[395190235,1764529832616,-500.0,0.00010959,2]
[395190236,1764529832625,-298.52562546,0.00010959,2]
[395190237,1764529832635,-500.0,0.00010959,2]
[395190238,1764529832644,-500.0,0.00010959,2]
[395190239,1764529832653,-500.0,0.00010959,2]
[395190240,1764529832662,-240.11814972,0.00011127,2]
[395190244,1764529838066,-301.21569943,0.00011127,2]
[395190245,1764529838076,-117.48955451,0.0001117,2]
[395190246,1764529838087,-3026.10628623,0.0001117,2]
[395190247,1764529838096,-420.0,0.00011277,2]
[395190248,1764529838105,-720.0,0.00011506,2]
[395190249,1764529838114,-3141.58446193,0.00011979,2]
[395190250,1764529838125,-2.01137881,0.00011979,2]
[395190251,1764529838135,-250.0,0.00012029,2]
[395190252,1764529838145,-153.142,0.000123,2]
[395190253,1764529838154,-587.0,0.00012401,2]
[395190254,1764529838164,-1225.39565363,0.00012408,2]
[395190255,1764529838173,-1358.0,0.00012431,2]
[395190256,1764529838183,-500.0,0.00012656,2]
[395190257,1764529838192,-500.0,0.00012656,2]
[395190258,1764529838201,-142.20860917,0.00012656,2]
[395190259,1764529838213,-357.79139083,0.00012656,2]
[395190260,1764529838222,-500.0,0.00012656,2]
[395190261,1764529838232,-500.0,0.00012656,2]
[395190262,1764529838241,-304.23276558,0.00012656,2]
[395190263,1764529838250,-258.12316002,0.00012656,2]
[395190264,1764529838262,-241.87683998,0.00012656,2]
[395190265,1764529838271,-433.96793782,0.00012656,2]
[395190266,1764529838281,-500.0,0.00012656,2]
[395190267,1764529838291,-341.83613834,0.00012656,2]
[395190268,1764529838302,-158.16386166,0.00012656,2]
[395190269,1764529838313,-451.71010281,0.00012656,2]
[395190270,1764529838324,-48.28989719,0.00012656,2]
[395190271,1764529838334,-500.0,0.00012656,2]
[395190272,1764529838344,-500.0,0.00012656,2]
[395190273,1764529838353,-500.0,0.00012656,2]
[395190274,1764529838364,-500.0,0.00012656,2]
[395190275,1764529838373,-500.0,0.00012656,2]
[395190276,1764529838383,-145.95831081,0.00012657,2]
[395190277,1764529838405,-718.04168919,0.00012657,2]
[395190278,1764529838415,-2756.42724317,0.00012789,2]
[395190279,1764529838427,-387.16859757,0.00012789,2]
[395190280,1764529838436,-231.28369723,0.00012889,2]
[395190281,1764529838446,-151.0,0.00013,2]
[395190282,1764529838456,-623.91019902,0.00013127,2]
[395190283,1764529838465,-507.15,0.00013272,2]
[395190284,1764529838475,-500.0,0.00013273,2]
[395190285,1764529838484,-500.0,0.00013273,2]
[395190286,1764529838493,-500.0,0.00013273,2]
[395190287,1764529838502,-502.69696859,0.00013273,2]
[395190288,1764529838512,-500.0,0.00013273,2]
[395190289,1764529838521,-500.0,0.00013273,2]
[395190291,1764529838531,-500.0,0.00013273,2]
[395190293,1764529838540,-500.0,0.00013273,2]
[395190295,1764529838549,-500.0,0.00013273,2]
[395190297,1764529838559,-500.0,0.00013273,2]
[395190299,1764529838568,-500.0,0.00013273,2]
[395190301,1764529838578,-500.0,0.00013273,2]
[395190303,1764529838587,-500.0,0.00013273,2]
[395190305,1764529838596,-524.09930582,0.00013273,2]
[395190307,1764529838606,-500.0,0.00013273,2]
[395190309,1764529838616,-500.0,0.00013273,2]
[395190311,1764529838626,-501.07741407,0.00013273,2]
[395190313,1764529838635,-500.0,0.00013273,2]
[395190315,1764529838644,-500.0,0.00013273,2]
[395190317,1764529838653,-500.0,0.00013273,2]
[395190319,1764529838663,-500.0,0.00013273,2]
[395190321,1764529838672,-500.0,0.00013273,2]
[395190323,1764529838682,-500.0,0.00013273,2]
[395190325,1764529838691,-461.84644215,0.00013273,2]
[395190327,1764529838700,-500.0,0.00013273,2]
[395190329,1764529838709,-500.0,0.00013273,2]
[395190331,1764529838718,-500.0,0.00013273,2]
[395190333,1764529838728,-500.0,0.00013273,2]
[395190335,1764529838737,-500.0,0.00013273,2]
[395190337,1764529838747,-500.0,0.00013273,2]
[395190339,1764529838756,-500.0,0.00013273,2]
[395190341,1764529838765,-500.0,0.00013273,2]
[395190342,1764529838775,-500.0,0.00013273,2]
[395190344,1764529838784,-500.0,0.00013273,2]
[395190346,1764529838793,-500.0,0.00013273,2]
[395190349,1764529838806,-151.0,0.000133,2]
[395190351,1764529838816,-239.84119403,0.00013437,2]
[395190353,1764529838825,-151.0,0.000135,2]
[395190355,1764529838835,-3143.59584074,0.00013598,2]
[395190357,1764529838844,-1633.98114183,0.00013615,2]
[395190359,1764529838854,-823.0,0.00013638,2]
[395190361,1764529838864,-300.0,0.00013673,2]
[395190363,1764529838874,-500.0,0.00013698,2]
[395190365,1764529838888,-500.0,0.00013698,2]
[395190366,1764529838898,-501.13394887,0.00013698,2]
[395190368,1764529838907,-500.0,0.00013698,2]
[395190369,1764529838917,-500.0,0.00013698,2]
[395190371,1764529838926,-500.0,0.00013698,2]
[395190373,1764529838937,-500.0,0.00013698,2]
[395190375,1764529838946,-500.0,0.00013698,2]
[395190377,1764529838956,-500.0,0.00013698,2]
[395190379,1764529838966,-500.0,0.00013698,2]
[395190381,1764529838976,-2000.0,0.00013698,2]
[395190383,1764529838986,-169.708667,0.00013698,2]
[395190385,1764529838996,-500.0,0.00013698,2]
[395190387,1764529839005,-500.0,0.00013698,2]
[395190389,1764529839015,-1552.28,0.00013698,2]
[395190391,1764529839025,-500.0,0.00013698,2]
[395190393,1764529839034,-814.58,0.00013698,2]
[395190395,1764529839043,-500.0,0.00013698,2]
[395190397,1764529839052,-500.0,0.00013698,2]
[395190399,1764529839062,-500.0,0.00013698,2]
[395190401,1764529839072,-500.0,0.00013698,2]
[395190403,1764529839081,-500.0,0.00013698,2]
[395190404,1764529839090,-500.0,0.00013698,2]
[395190406,1764529839099,-500.0,0.00013698,2]
[395190408,1764529839108,-915.58,0.00013698,2]
[395190410,1764529839117,-500.0,0.00013698,2]
[395190412,1764529839127,-500.0,0.00013698,2]
[395190414,1764529839136,-500.0,0.00013698,2]
[395190416,1764529839145,-500.0,0.00013698,2]
[395190418,1764529839155,-346.32640996,0.00013698,2]
[395190421,1764529839169,-153.67359004,0.00013698,2]
[395190423,1764529839180,-203.19740799,0.00013698,2]
[395190425,1764529839192,-328.69259201,0.00013698,2]
[395190427,1764529839202,-378.03650891,0.00013698,2]
[395190429,1764529839213,-121.96349109,0.00013698,2]
[395190431,1764529839224,-500.0,0.00013698,2]
[395190433,1764529839233,-333.25904734,0.00013698,2]
[395190435,1764529839244,-94.23142644,0.00013698,2]
[395190437,1764529839253,-500.0,0.00013698,2]
[395190439,1764529839261,-426.25361673,0.00013698,2]
[395190441,1764529839273,-73.74638327,0.00013698,2]
[395190443,1764529839283,-500.0,0.00013698,2]
[395190445,1764529839292,-500.0,0.00013698,2]
[395190447,1764529839304,-500.0,0.00013698,2]
[395190449,1764529839314,-500.0,0.00013698,2]
[395190451,1764529839323,-256.20706615,0.00013698,2]
[395190453,1764529839336,-243.79293385,0.00013698,2]
[395190455,1764529839345,-313.90539011,0.00013698,2]
[395190539,1764529840556,-414.0,9.431e-05,2]
[395190543,1764529840594,-414.0,0.00012431,2]
[395190544,1764529840604,-186.09460989,0.00013698,2]
[395190546,1764529840613,-500.0,0.00013698,2]
[395190548,1764529840622,-500.0,0.00013698,2]
[395190550,1764529840631,-500.0,0.00013698,2]
[395190552,1764529840640,-500.0,0.00013698,2]
[395190554,1764529840649,-500.0,0.00013698,2]
[395190556,1764529840659,-500.0,0.00013698,2]
[395190558,1764529840668,-500.0,0.00013698,2]
[395190560,1764529840676,-500.0,0.00013698,2]
[395190562,1764529840687,-500.0,0.00013698,2]
[395190564,1764529840697,-294.88780935,0.00013698,2]
[395190566,1764529840706,-500.0,0.00013698,2]
[395190568,1764529840715,-500.0,0.00013698,2]
[395190570,1764529840724,-500.0,0.00013698,2]
[395190572,1764529840734,-500.0,0.00013698,2]
[395190574,1764529840743,-500.0,0.00013698,2]
[395190576,1764529840752,-500.0,0.00013698,2]
[395190578,1764529840761,-251.04615587,0.00013698,2]
[395190580,1764529840771,-500.0,0.00013698,2]
[395190582,1764529840780,-500.0,0.00013698,2]
[395190584,1764529840789,-657.79957088,0.00013698,2]
[395190586,1764529840803,-342.20042912,0.00013698,2]
[395190588,1764529840813,-500.0,0.00013698,2]
[395190590,1764529840823,-500.0,0.00013698,2]
[395190592,1764529840832,-500.0,0.00013698,2]
[395190594,1764529840841,-519.63807565,0.00013698,2]
[395190595,1764529840850,-500.0,0.00013698,2]
[395190597,1764529840859,-511.1337399,0.00013698,2]
[395190599,1764529840868,-500.0,0.00013698,2]
[395190601,1764529840878,-500.0,0.00013698,2]
[395190603,1764529840888,-500.0,0.00013698,2]
[395190605,1764529840897,-500.0,0.00013698,2]
[395190607,1764529840906,-500.0,0.00013698,2]
[395190609,1764529840916,-500.0,0.00013698,2]
[395190611,1764529840925,-500.0,0.00013698,2]
[395190613,1764529840935,-500.0,0.00013698,2]
[395190615,1764529840944,-520.05726179,0.00013698,2]
[395190617,1764529840953,-500.0,0.00013698,2]
[395190619,1764529840962,-500.0,0.00013698,2]
[395190621,1764529840972,-500.0,0.00013698,2]
[395190623,1764529840981,-500.0,0.00013698,2]
[395190625,1764529840990,-500.0,0.00013698,2]
[395190626,1764529840999,-500.0,0.00013698,2]
[395190628,1764529841008,-500.0,0.00013698,2]
[395190630,1764529841017,-500.0,0.00013698,2]
[395190632,1764529841027,-500.0,0.00013698,2]
[395190634,1764529841036,-500.0,0.00013698,2]
[395190636,1764529841045,-500.0,0.00013698,2]
[395190638,1764529841054,-508.9357121,0.00013698,2]
[395190640,1764529841064,-500.0,0.00013698,2]
[395190642,1764529841073,-459.21434034,0.00013698,2]
[395190644,1764529841083,-500.0,0.00013698,2]
[395190646,1764529841092,-563.2354843,0.00013698,2]
[395190648,1764529841101,-500.0,0.00013698,2]
[395190650,1764529841111,-500.0,0.00013698,2]
[395190652,1764529841120,-500.0,0.00013698,2]
[395190654,1764529841129,-500.0,0.00013698,2]
[395190656,1764529841138,-500.0,0.00013698,2]
[395190658,1764529841148,-501.4277964,0.00013698,2]
[395190660,1764529841156,-500.0,0.00013698,2]
[395190662,1764529841166,-500.0,0.00013698,2]
[395190664,1764529841175,-500.0,0.00013698,2]
[395190666,1764529841184,-1356.58,0.00013698,2]
[395190668,1764529841193,-500.0,0.00013698,2]
[395190670,1764529841202,-500.0,0.00013698,2]
[395190671,1764529841211,-500.0,0.00013698,2]
[395190673,1764529841220,-500.0,0.00013698,2]
[395190675,1764529841230,-757.85,0.00013698,2]
[395190677,1764529841240,-500.0,0.00013698,2]
[395190679,1764529841249,-500.0,0.00013698,2]
[395190681,1764529841258,-500.0,0.00013698,2]
[395190683,1764529841268,-526.97779956,0.00013698,2]
[395190685,1764529841278,-500.0,0.00013698,2]
[395190687,1764529841289,-935.78,0.00013698,2]
[395190689,1764529841299,-502.53347046,0.00013698,2]
[395190691,1764529841308,-1092.85,0.00013698,2]
[395190693,1764529841317,-500.0,0.00013698,2]
[395190695,1764529841327,-502.64888953,0.00013698,2]
[395190697,1764529841336,-183.29765093,0.00013698,2]
[395190700,1764529841351,-316.70234907,0.00013698,2]
[395190702,1764529841361,-500.0,0.00013698,2]
[395190704,1764529841371,-500.0,0.00013698,2]
[395190706,1764529841383,-500.0,0.00013698,2]
[395190708,1764529841394,-266.58618045,0.00013698,2]
[395190710,1764529841406,-233.41381955,0.00013698,2]
[395190713,1764529841415,-502.11112748,0.00013698,2]
[395190714,1764529841424,-500.0,0.00013698,2]
[395190716,1764529841434,-500.0,0.00013698,2]
[395190718,1764529841443,-22.10087142,0.00013698,2]
[395190720,1764529841454,-477.89912858,0.00013698,2]
[395190722,1764529841464,-386.70873403,0.00013698,2]
[395190724,1764529841475,-113.29126597,0.00013698,2]
[395190727,1764529841485,-500.0,0.00013698,2]
[395190729,1764529841495,-500.0,0.00013698,2]
[395190730,1764529841504,-500.0,0.00013698,2]
[395190732,1764529841514,-500.0,0.00013698,2]
[395190734,1764529841523,-500.0,0.00013698,2]
[395190737,1764529841533,-515.43,0.00013698,2]
[395190739,1764529841542,-502.67157478,0.00013698,2]
[395190741,1764529841553,-500.0,0.00013698,2]
[395190742,1764529841562,-589.45784442,0.00013698,2]
[395190744,1764529841572,-537.20652425,0.00013698,2]
[395190746,1764529841581,-500.0,0.00013698,2]
[395190748,1764529841590,-500.0,0.00013698,2]
[395190750,1764529841599,-500.0,0.00013698,2]
[395190752,1764529841609,-500.0,0.00013698,2]
[395190754,1764529841618,-500.0,0.00013698,2]
[395190756,1764529841628,-500.0,0.00013698,2]
[395190758,1764529841637,-500.0,0.00013698,2]
[395190760,1764529841645,-500.0,0.00013698,2]
[395190762,1764529841655,-500.0,0.00013698,2]
[395190764,1764529841664,-500.0,0.00013698,2]
[395190766,1764529841673,-500.0,0.00013698,2]
[395190768,1764529841682,-500.0,0.00013698,2]
[395190770,1764529841691,-891.67,0.00013698,2]
[395190772,1764529841702,-500.0,0.00013698,2]
[395190774,1764529841711,-500.0,0.00013698,2]
[395190776,1764529841720,-500.0,0.00013698,2]
[395190778,1764529841729,-500.0,0.00013698,2]
[395190780,1764529841737,-500.0,0.00013698,2]
[395190782,1764529841746,-500.0,0.00013698,2]
[395190784,1764529841755,-500.0,0.00013698,2]
[395190786,1764529841764,-500.0,0.00013698,2]
[395190788,1764529841774,-500.0,0.00013698,2]
[395190790,1764529841782,-531.02931649,0.00013698,2]
[395190792,1764529841792,-500.0,0.00013698,2]
[395190794,1764529841802,-784.25,0.00013698,2]
[395190795,1764529841815,-500.0,0.00013698,2]
[395190797,1764529841824,-500.0,0.00013698,2]
[395190799,1764529841833,-500.0,0.00013698,2]
[395190801,1764529841843,-618.89162304,0.00013698,2]
[395190803,1764529841856,-503.8975791,0.00013698,2]
[395190805,1764529841866,-500.0,0.00013698,2]
[395190807,1764529841875,-500.0,0.00013698,2]
[395190809,1764529841886,-500.0,0.00013698,2]
[395190811,1764529841895,-500.0,0.00013698,2]
[395190813,1764529841905,-500.0,0.00013698,2]
[395190815,1764529841914,-500.0,0.00013698,2]
[395190817,1764529841924,-1700.8,0.00013698,2]
[395190819,1764529841933,-500.0,0.00013698,2]
[395190821,1764529841943,-447.54806411,0.00013698,2]
[395190823,1764529841952,-500.0,0.00013698,2]
[395190825,1764529841962,-500.0,0.00013698,2]
[395190827,1764529841971,-500.0,0.00013698,2]
[395190829,1764529841981,-500.0,0.00013698,2]
[395190831,1764529841990,-500.0,0.00013698,2]
[395190833,1764529841998,-550.65868542,0.00013698,2]
[395190835,1764529842008,-500.0,0.00013698,2]
[395190837,1764529842017,-500.0,0.00013698,2]
[395190839,1764529842026,-500.0,0.00013698,2]
[395190841,1764529842035,-500.0,0.00013698,2]
[395190843,1764529842044,-500.0,0.00013698,2]
[395190845,1764529842054,-770.86,0.00013698,2]
[395190847,1764529842064,-500.0,0.00013698,2]
[395190849,1764529842073,-500.0,0.00013698,2]
[395190851,1764529842083,-500.0,0.00013698,2]
[395190853,1764529842092,-500.0,0.00013698,2]
[395190855,1764529842101,-500.0,0.00013698,2]
[395190857,1764529842110,-500.0,0.00013698,2]
[395190859,1764529842119,-500.0,0.00013698,2]
[395190861,1764529842128,-500.0,0.00013698,2]
[395190862,1764529842137,-500.0,0.00013698,2]
[395190864,1764529842147,-500.0,0.00013698,2]
[395190866,1764529842156,-500.0,0.00013698,2]
[395190868,1764529842165,-500.0,0.00013698,2]
[395190870,1764529842174,-500.0,0.00013698,2]
[395190872,1764529842184,-500.0,0.00013698,2]
[395190874,1764529842193,-500.0,0.00013698,2]
[395190876,1764529842203,-500.0,0.00013698,2]
[395190878,1764529842212,-500.0,0.00013698,2]
[395190880,1764529842222,-500.0,0.00013698,2]
[395190882,1764529842232,-500.0,0.00013698,2]
[395190884,1764529842242,-500.0,0.00013698,2]
[395190886,1764529842251,-500.0,0.00013698,2]
[395190888,1764529842262,-500.0,0.00013698,2]
[395190890,1764529842271,-500.0,0.00013698,2]
[395190892,1764529842281,-502.28088367,0.00013698,2]
[395190894,1764529842290,-515.36899788,0.00013698,2]
[395190896,1764529842300,-500.0,0.00013698,2]
[395190898,1764529842310,-549.46687192,0.00013698,2]
[395190900,1764529842319,-500.0,0.00013698,2]
[395190902,1764529842329,-567.71,0.00013698,2]
[395190904,1764529842338,-413.95971853,0.00013698,2]
[395190906,1764529842348,-500.0,0.00013698,2]
[395190908,1764529842358,-500.0,0.00013698,2]
[395190910,1764529842367,-500.0,0.00013698,2]
[395190912,1764529842377,-500.0,0.00013698,2]
[395190914,1764529842386,-615.99118568,0.00013698,2]
[395190916,1764529842396,-500.0,0.00013698,2]
[395190918,1764529842408,-500.0,0.00013698,2]
[395190920,1764529842417,-500.0,0.00013698,2]
[395190922,1764529842427,-500.0,0.00013698,2]
[395190925,1764529842445,-500.0,0.00013698,2]
[395190928,1764529842457,-500.0,0.00013698,2]
[395190930,1764529842467,-500.0,0.00013698,2]
[395190932,1764529842477,-500.0,0.00013698,2]
[395190934,1764529842487,-500.0,0.00013698,2]
[395190937,1764529842496,-500.0,0.00013698,2]
[395190939,1764529842506,-500.0,0.00013698,2]
[395190941,1764529842517,-500.0,0.00013698,2]
[395190943,1764529842526,-500.0,0.00013698,2]
[395190945,1764529842535,-500.0,0.00013698,2]
[395190949,1764529842544,-500.0,0.00013698,2]
[395190951,1764529842554,-517.92848488,0.00013698,2]
[395190953,1764529842564,-500.0,0.00013698,2]
[395190955,1764529842574,-500.0,0.00013698,2]
[395190957,1764529842585,-500.0,0.00013698,2]
[395190959,1764529842594,-500.0,0.00013698,2]
[395190961,1764529842603,-500.0,0.00013698,2]
[395190963,1764529842613,-500.0,0.00013698,2]
[395190965,1764529842622,-1532.99,0.00013698,2]
[395190967,1764529842631,-500.0,0.00013698,2]
[395190969,1764529842640,-500.0,0.00013698,2]
[395190971,1764529842649,-500.0,0.00013698,2]
[395190973,1764529842659,-728.65,0.00013698,2]
[395190975,1764529842668,-500.0,0.00013698,2]
[395190977,1764529842679,-619.98,0.00013698,2]
[395190979,1764529842688,-636.96,0.00013698,2]
[395190981,1764529842698,-500.0,0.00013698,2]
[395190983,1764529842709,-500.0,0.00013698,2]
[395190985,1764529842718,-500.0,0.00013698,2]
[395190987,1764529842728,-500.0,0.00013698,2]
[395190989,1764529842737,-500.0,0.00013698,2]
[395190991,1764529842747,-500.0,0.00013698,2]
[395190993,1764529842756,-500.0,0.00013698,2]
[395190995,1764529842766,-500.0,0.00013698,2]
[395190997,1764529842775,-500.0,0.00013698,2]
[395190999,1764529842784,-500.0,0.00013698,2]
[395191001,1764529842793,-924.26,0.00013698,2]
[395191003,1764529842804,-500.0,0.00013698,2]
[395191005,1764529842815,-561.02,0.00013698,2]
[395191007,1764529842825,-768.99,0.00013698,2]
[395191009,1764529842834,-500.0,0.00013698,2]
[395191011,1764529842843,-500.0,0.00013698,2]
[395191013,1764529842852,-500.0,0.00013698,2]
[395191015,1764529842862,-500.0,0.00013698,2]
[395191017,1764529842871,-500.0,0.00013698,2]
[395191019,1764529842882,-500.0,0.00013698,2]
[395191021,1764529842891,-500.0,0.00013698,2]
[395191023,1764529842900,-500.0,0.00013698,2]
[395191025,1764529842910,-500.0,0.00013698,2]
[395191027,1764529842920,-500.0,0.00013698,2]
[395191029,1764529842929,-500.0,0.00013698,2]
[395191031,1764529842943,-500.0,0.00013698,2]
[395191033,1764529842952,-500.0,0.00013698,2]
[395191035,1764529842963,-500.0,0.00013698,2]
[395191037,1764529842972,-500.0,0.00013698,2]
[395191039,1764529842982,-500.0,0.00013698,2]
[395191041,1764529842991,-500.0,0.00013698,2]
[395191043,1764529843000,-500.0,0.00013698,2]
[395191045,1764529843010,-500.0,0.00013698,2]
[395191047,1764529843019,-500.0,0.00013698,2]
[395191049,1764529843029,-500.0,0.00013698,2]
[395191051,1764529843038,-504.67775139,0.00013698,2]
[395191053,1764529843047,-500.0,0.00013698,2]
[395191055,1764529843057,-395.28144215,0.00013698,2]
[395191057,1764529843066,-500.0,0.00013698,2]
[395191059,1764529843075,-866.82,0.00013698,2]
[395191061,1764529843084,-500.0,0.00013698,2]
[395191064,1764529843094,-500.0,0.00013698,2]
[395191087,1764529843301,-500.0,0.00013698,2]
[395191089,1764529843311,-500.0,0.00013698,2]
[395191091,1764529843320,-500.0,0.00013698,2]
[395191093,1764529843330,-500.0,0.00013698,2]
[395191095,1764529843339,-500.0,0.00013698,2]
[395191097,1764529843349,-1233.77,0.00013698,2]
[395191099,1764529843358,-500.0,0.00013698,2]
[395191101,1764529843368,-500.0,0.00013698,2]
[395191103,1764529843378,-500.0,0.00013698,2]
[395191105,1764529843388,-500.0,0.00013698,2]
[395191107,1764529843397,-500.0,0.00013698,2]
[395191109,1764529843406,-1061.75,0.00013698,2]
[395191111,1764529843416,-500.0,0.00013698,2]
[395191113,1764529843426,-500.0,0.00013698,2]
[395191115,1764529843435,-500.0,0.00013698,2]
[395191117,1764529843444,-500.0,0.00013698,2]
[395191119,1764529843454,-1485.13,0.00013698,2]
[395191121,1764529843464,-500.0,0.00013698,2]
[395191123,1764529843473,-500.0,0.00013698,2]
[395191125,1764529843483,-500.0,0.00013698,2]
[395191127,1764529843496,-500.0,0.00013698,2]
[395191129,1764529843506,-558.74212871,0.00013698,2]
[395191131,1764529843515,-500.0,0.00013698,2]
[395191133,1764529843525,-500.0,0.00013698,2]
[395191135,1764529843534,-500.0,0.00013698,2]
[395191137,1764529843544,-500.0,0.00013698,2]
[395191139,1764529843554,-500.0,0.00013698,2]
[395191141,1764529843563,-500.0,0.00013698,2]
[395191143,1764529843573,-728.9,0.00013698,2]
[395191145,1764529843583,-500.0,0.00013698,2]
[395191147,1764529843592,-500.0,0.00013698,2]
[395191149,1764529843602,-500.0,0.00013698,2]
[395191151,1764529843611,-500.0,0.00013698,2]
[395191153,1764529843621,-500.0,0.00013698,2]
[395191155,1764529843631,-676.41,0.00013698,2]
[395191157,1764529843640,-500.0,0.00013698,2]
[395191159,1764529843649,-581.64,0.00013698,2]
[395191161,1764529843658,-500.0,0.00013698,2]
[395191163,1764529843667,-500.0,0.00013698,2]
[395191165,1764529843677,-173.46690907,0.00013698,2]
[395191167,1764529843686,-623.44,0.00013698,2]
[395191169,1764529843697,-500.0,0.00013698,2]
[395191171,1764529843706,-500.0,0.00013698,2]
[395191173,1764529843718,-500.0,0.00013698,2]
[395191176,1764529843727,-674.97,0.00013698,2]
[395191178,1764529843737,-500.0,0.00013698,2]
[395191180,1764529843747,-177.46670746,0.00013698,2]
[395191182,1764529843756,-500.0,0.00013698,2]
[395191184,1764529843765,-500.0,0.00013698,2]
[395191186,1764529843774,-500.0,0.00013698,2]
[395191188,1764529843784,-500.0,0.00013698,2]
[395191190,1764529843793,-764.62,0.00013698,2]
[395191192,1764529843803,-527.87,0.00013698,2]
[395191193,1764529843814,-500.0,0.00013698,2]
[395191195,1764529843823,-500.0,0.00013698,2]
[395191197,1764529843832,-500.0,0.00013698,2]
[395191199,1764529843842,-500.0,0.00013698,2]
[395191201,1764529843851,-500.0,0.00013698,2]
[395191203,1764529843861,-2938.09,0.00013698,2]
[395191205,1764529843870,-500.0,0.00013698,2]
[395191207,1764529843879,-500.0,0.00013698,2]
[395191209,1764529843889,-304.43049247,0.00013698,2]
[395191211,1764529843897,-528.19241436,0.00013698,2]
[395191213,1764529843907,-1158.79,0.00013698,2]